Cogmind - Beta 13 @@@ ROGUE MODE // 2024.07.07 @ 02:18:18 Player: gigi283 Result: Self-destructed Performance ------------- Evolutions (3) 1500 Regions Visited (8) 1600 Robots Destroyed (84) 420 Value Destroyed (2273) 2273 Prototype IDs (4) 80 Alien Tech Used (0) 0 Bonus (198) 198 TOTAL SCORE: 6071 Bonus ------- High Alert Combat Kills 45 Follower Combat Kills 60 Aligned with FarCom 300 Friendly Fire -207 Cogmind --------- Core Integrity 196/700 Matter 26/300 Energy 100/100 System Corruption 54% Temperature Cool (0) Movement Flying (112) Ox1 Location -7/Factory Parts ------- > --- POWER (1) -------- (None) > --- PROPULSION (4) --- VTOL Module VTOL Module > --- UTILITY (4) ------ Launcher Guidance Computer Armor Integrity Analyzer Layered Light Armor Plating Dynamic Insulation System > --- WEAPON (4) ------- Autogun Light Cannon > --- INVENTORY (5) ---- Improved Field Recycling Unit (0) Peak State ------------ > --- POWER ------------ Micro Nuclear Core > --- PROPULSION ------- Light Treads Armored Treads Armored Treads Armored Treads > --- UTILITY ---------- Huge Storage Unit Improved Signal Interpreter Hardened Medium Armor Plating System Shield > --- WEAPON ----------- Lightning Gun AWS/Autocannon > --- INVENTORY -------- Micro Nuclear Core Micro Nuclear Core Light Treads Heat Sink Advanced Visual Processing Unit Improved Sensor Array Advanced Terrain Scan Processor Transport Network Coupler Improved Power Shielding Reactive Plating Heavy EM Shotgun Lightning Gun Particle Gun Improved Medium Laser Minigun Enhanced Autogun Light Cannon Heavy Assault Cannon Deploy-a-Sentry Deploy-a-Sentry [Rating: 64] Favorites ----------- Power Ion Engine Engine Ion Engine Power Core Micro Nuclear Core Propulsion Light Treads Treads Light Treads Flight Unit Cesium-ion Thruster Utility Huge Storage Unit Device Advanced Weight Redist. System Storage Huge Storage Unit Processor Signal Interpreter Hackware System Shield Protection Hardened Medium Armor Plating Weapon Light Cannon Energy Gun Lightning Gun Energy Cannon Heavy Particle Cannon Ballistic Gun Assault Rifle Ballistic Cannon Light Cannon Launcher Rocket Array Build | -11 -10 -10 -10 -9 -8 -7 -7 -7 ------- Run | Yrd Mat Min Exi Min Mat Fac Was Fac Slots Evolved 6 | . . . . . 4 2 . . Power . | . . . . . . . . . Propulsion 2 | . . . . . 2 . . . Utility 2 | . . . . . . 2 . . Weapon 2 | . . . . . 2 . . . Parts Attached 60 | 6 6 1 . . 16 2 1 28 Power 7 | 1 . 1 . . 2 . 1 2 Engine 4 | 1 . 1 . . 1 . . 1 Core 3 | . . . . . 1 . 1 1 Reactor . | . . . . . . . . . Propulsion 21 | 2 2 . . . 10 . . 7 Treads 14 | 2 2 . . . 10 . . . Leg . | . . . . . . . . . Wheel . | . . . . . . . . . Hover . | . . . . . . . . . Flight 7 | . . . . . . . . 7 Utility 16 | 1 3 . . . 1 2 . 9 Device 2 | . . . . . . . . 2 Storage 2 | 1 1 . . . . . . . Processor 5 | . 1 . . . 1 . . 3 Hackware 1 | . . . . . . 1 . . Protection 6 | . 1 . . . . 1 . 4 Artifact . | . . . . . . . . . Weapon 16 | 2 1 . . . 3 . . 10 Energy Gun 4 | 1 . . . . 1 . . 2 Energy Cannon 2 | . . . . . 1 . . 1 Ballistic Gun 2 | 1 . . . . . . . 1 Ballistic Cannon 6 | . 1 . . . 1 . . 4 Launcher 2 | . . . . . . . . 2 Special Weapon . | . . . . . . . . . Impact Weapon . | . . . . . . . . . Slashing Weapon . | . . . . . . . . . Piercing Weapon . | . . . . . . . . . Special Melee Weapon . | . . . . . . . . . Unidentified Prototypes 4 | . . . . . 1 . . 3 Corrupted Parts 4 | . . . . . . . . 4 System Corruption 19 | . . . . . . . . 19 Parts Lost 21 | . . 1 . . 1 . 4 15 Power 4 | . . 1 . . . . 1 2 Propulsion 7 | . . . . . 1 . 1 5 Utility 3 | . . . . . . . 1 2 Weapon 7 | . . . . . . . 1 6 Highest Loss Streak 5 | . . 1 . . 1 . 4 5 To Critical Strikes . | . . . . . . . . . Average Slot Usage (%) 86 | . 99 99 100 100 80 82 48 68 Engine 7 | . 14 13 14 14 3 . . 2 Core 2 | . . . . . 5 7 6 4 Treads 26 | . 28 28 28 28 35 30 16 . Flight 2 | . . . . . . . . 17 Storage 9 | . 14 14 14 14 9 7 3 . Processor 11 | . 12 14 14 14 9 7 4 16 Energy Gun 2 | . 1 . . . 4 7 3 1 Energy Cannon 1 | . . . . . 3 . . 4 Ballistic Gun 6 | . 14 14 14 14 . . . . Ballistic Cannon 10 | . 12 14 14 14 9 7 3 7 Naked Turns 34 | . . . . . . . 34 . Heaviest Build 158 | 13 90 90 90 90 152 158 158 36 Greatest Support 80 | 40 40 40 40 40 80 80 80 24 Greatest Overweight (x) 4 | . 2 2 2 2 2 1 1 4 Average Overweight (x) 1 | . . 2 2 2 1 1 . . Largest Inventory Capacity 25 | 8 25 25 25 25 25 25 25 5 Average Capacity 21 | 7 17 25 25 25 25 25 15 5 Most Carried 23 | 1 7 8 12 12 23 23 21 5 Average Carried 9 | . 5 7 9 12 14 21 13 3 Final Capacity 25 | 8 25 25 25 25 25 25 5 5 Final Carried 23 | 1 6 7 12 12 23 21 5 1 Class Distribution -------------------- 48% | Mutant 36% | Skirmisher 6% | Gunner 6% | Tank Dominant Class ---------------- Mutant | -10/Materials Mutant | -10/Mines Mutant | -10/Exiles Mutant | -9/Mines Skirmisher | -8/Materials Tank | -7/Factory Mutant | -7/Waste Gunner | -7/Factory Resources | -11 -10 -10 -10 -9 -8 -7 -7 -7 ----------- Run | Yrd Mat Min Exi Min Mat Fac Was Fac Matter Collected 1000 | 211 252 28 . . 190 . 36 283 Remotely . | . . . . . . . . . Salvage Created 3013 | . 409 171 . . 1373 . 497 563 Parts 147 | . 32 9 . . 80 . . 26 Haulers Intercepted 8 | . 2 . . . 5 . . 1 Recyclers Shooed 2 | . 2 . . . . . . . Parts Field Recycled . | . . . . . . . . . Retrieved Matter . | . . . . . . . . . Parts Self-Destructed . | . . . . . . . . . Prevented . | . . . . . . . . . Kills | -11 -10 -10 -10 -9 -8 -7 -7 -7 ------- Run | Yrd Mat Min Exi Min Mat Fac Was Fac Combat Hostiles Destroyed 52 | . 7 4 . . 25 . 3 13 Guns 4 | . 2 1 . . 1 . . . Cannons 36 | . 5 3 . . 22 . 3 3 AOE 10 | . . . . . 2 . . 8 Classes Destroyed 15 | . 5 1 . . 7 . 1 1 Worker 3 | . . . . . 2 . . 1 Builder 3 | . . . . . 3 . . . Tunneler 2 | . . 1 . . 1 . . . Hauler 8 | . 2 . . . 5 . . 1 Recycler 5 | . 1 . . . 4 . . . Operator 2 | . . . . . 1 . . 1 Watcher 8 | . 3 . . . 5 . . . Swarmer 17 | . 3 . . . 10 . . 4 Grunt 17 | . 4 4 . . 4 . . 5 Duelist 1 | . . . . . . . . 1 Sentry 10 | . . . . . 7 . . 3 Specialist 2 | . . . . . 2 . . . Hunter 2 | . . . . . 2 . . . Heavy 1 | . . . . . 1 . . . Compactor 3 | . . . . . . . 3 . Best Kill Streak 7 | . 4 3 . . 7 . 1 5 Combat Bots Only 5 | . 3 2 . . 5 . 1 3 Max Kills in Single Turn 3 | . 1 1 . . 2 . 1 3 Gunslinging . | . . . . . . . . . Exploded 3 | . . . . . 1 . . 3 Melee . | . . . . . . . . . Uniques/NPCs Destroyed . | . . . . . . . . . Combat | -11 -10 -10 -10 -9 -8 -7 -7 -7 -------- Run | Yrd Mat Min Exi Min Mat Fac Was Fac Hostile Shots Fired 375 | . 36 17 . . 74 . 5 243 Missed 128 | . 15 3 . . 27 . 1 82 Damage Taken 3322 | . 237 197 . . 765 . 179 1944 Core 665 | . 67 46 . . 48 . 86 418 Absorbed by Shields . | . . . . . . . . . Regen/Repaired (Parts) 76 | . . . . . 76 . . . Core Remaining (%) 81 | 100 . . . 54 91 . . . Volleys Fired 137 | . 33 9 . . 50 . 6 39 Largest 3 | . 2 2 . . 1 . 1 3 Hottest 180 | . 60 55 . . 75 . 55 180 Shots Fired 293 | . 66 18 . . 114 2 32 61 Gun 94 | . 55 9 . . 19 . 6 5 Cannon 192 | . 11 9 . . 95 2 26 49 Launcher 7 | . . . . . . . . 7 Special . | . . . . . . . . . Kinetic 189 | . 44 18 . . 64 2 26 35 Thermal 67 | . 22 . . . 31 . . 14 Explosive 4 | . . . . . . . . 4 Electromagnetic 33 | . . . . . 19 . 6 8 Robot Hit Streak 9 | . 8 3 . . 8 3 9 7 Robot Miss Streak 4 | . 3 2 . . 4 . 2 4 Penetration Max . | . . . . . . . . . Secondary Targets . | . . . . . . . . . Autonomous 92 | . . . . . 64 2 26 . Shots Hit Robots 193 | . 42 9 . . 78 2 26 36 Core Hits 97 | . 23 6 . . 39 . 5 24 Critical Kills 1 | . . . . . . . . 1 Critical Parts Destroyed . | . . . . . . . . . Critical Strikes 7 | . . 1 . . 5 . . 1 Meltdown 1 | . . . . . . . . 1 Blast 5 | . . 1 . . 4 . . . Corrupt 1 | . . . . . 1 . . . Melee Attacks . | . . . . . . . . . Impact . | . . . . . . . . . Slashing . | . . . . . . . . . Piercing . | . . . . . . . . . Sneak Attacks . | . . . . . . . . . Combat Hostiles . | . . . . . . . . . Follow-up Attacks . | . . . . . . . . . Damage Inflicted 8751 | . 593 160 . . 4663 66 1846 1423 Guns 768 | . 410 67 . . 218 . 5 68 Cannons 6854 | . 183 81 . . 3964 66 1841 719 Explosions 1020 | . . . . . 468 . . 552 Melee . | . . . . . . . . . Ramming 109 | . . 12 . . 13 . . 84 Kinetic 6398 | . 439 148 . . 3389 66 1841 515 Thermal 1364 | . 154 . . . 1006 . . 204 Explosive 503 | . . . . . 37 . . 466 Electromagnetic 377 | . . . . . 218 . 5 154 Impact . | . . . . . . . . . Slashing . | . . . . . . . . . Piercing . | . . . . . . . . . Highest Corruption 54 | . . . . . . . 34 54 Average Corruption 31 | . . . . . . . 17 35 Corruption Purged . | . . . . . . . . . Corruption Blocked . | . . . . . . . . . Effects 74 | . . . . . . . 19 55 Message Errors 20 | . . . . . . . 3 17 Matter Fused 14 | . . . . . . . 4 10 Heat Flow Errors 6 | . . . . . . . 1 5 Energy Discharges 8 | . . . . . . . 1 7 Parts Rejected 2 | . . . . . . . 1 1 Parts Fused 1 | . . . . . . . . 1 Data Loss (minor) 8 | . . . . . . . 3 5 Data Loss (major) 3 | . . . . . . . 1 2 Misdirections 12 | . . . . . . . 5 7 Overload Shots . | . . . . . . . . . Overflow Damage 603 | . . . . . 599 . . 4 Projectiles 585 | . . . . . 583 . . 2 Explosions 17 | . . . . . 16 . . 1 Melee 1 | . . . . . . . . 1 Knockbacks 8 | . 1 . . . 6 . . 1 Impact 2 | . . . . . 1 . . 1 Kinetic 5 | . 1 . . . 4 . . . Secondary 1 | . . . . . 1 . . . Self-Inflicted Damage 251 | . . . . . 58 . . 193 Shots 10 | . . . . . 1 . . 9 Rammed 20 | . . 1 . . 1 . . 18 Targets Rammed 21 | . . 1 . . 2 . . 18 Kicked . | . . . . . . . . . Crushed 1 | . . . . . 1 . . . Highest Temperature 475 | . 213 15 . . 110 . 249 475 Average Temperature 84 | . 85 8 . . 30 . 69 130 Received Heat Transfer 663 | . 99 117 . . 45 . . 402 Effects 6 | . . . . . . . . 6 Shutdowns 1 | . . . . . . . . 1 Interference 5 | . . . . . . . . 5 Siege Activations . | . . . . . . . . . Robots Corrupted . | . . . . . . . . . Combat Hostiles . | . . . . . . . . . Parts Fried 2 | . . . . . 1 . . 1 Impact Corruptions 1 | . . . . . . . . 1 Robots Melted 2 | . . . . . . . . 2 Combat Hostiles 2 | . . . . . . . . 2 Parts Melted 6 | . 1 2 . . . . . 3 Heat Transferred 2001 | . 350 . . . 1251 . . 400 Parts Sabotaged . | . . . . . . . . . Parts Stolen . | . . . . . . . . . Parts Stripped . | . . . . . . . . . Power Chain Reactions 1 | . . . . . 1 . . . Alert | -11 -10 -10 -10 -9 -8 -7 -7 -7 ------- Run | Yrd Mat Min Exi Min Mat Fac Was Fac Peak Influence 532 | . 190 68 . 53 532 213 78 218 Initial 212 | . . . . . 20 212 74 26 Average 170 | . 53 29 . 46 321 212 58 101 Maximum Alert Level 2 | . . . . . 2 1 . 1 Low Security (%) 63 | 100 100 100 . 100 22 . 100 89 Level 1 22 | . . . . . 43 100 . 10 Level 2 14 | . . . . . 33 . . . Level 3 . | . . . . . . . . . Level 4 . | . . . . . . . . . Level 5 . | . . . . . . . . . High Security . | . . . . . . . . . Max Security . | . . . . . . . . . Squads Dispatched 6 | . . . . . 3 . . 3 Investigation . | . . . . . . . . . Extermination 1 | . . . . . . . . 1 Reinforcement 5 | . . . . . 3 . . 2 Assault . | . . . . . . . . . Garrison . | . . . . . . . . . Intercept . | . . . . . . . . . Searches Triggered . | . . . . . . . . . Construction Impeded 1 | . . . . . . . . 1 Haulers Reinforced . | . . . . . . . . . Active Scanning Responses . | . . . . . . . . . Cargo Convoy Interrupts . | . . . . . . . . . Stealth | -11 -10 -10 -10 -9 -8 -7 -7 -7 --------- Run | Yrd Mat Min Exi Min Mat Fac Was Fac Distress Signals 2 | . . . . . 1 . . 1 Communications Jammed . | . . . . . . . . . Distress Signals . | . . . . . . . . . Times Spotted 75 | . 12 4 . 2 29 . 9 19 Peak Tracking Total 5 | . 3 2 . 2 5 . 3 5 Tactical Retreats 4 | . . . . . 1 . 1 2 Traps | -11 -10 -10 -10 -9 -8 -7 -7 -7 ------- Run | Yrd Mat Min Exi Min Mat Fac Was Fac Traps Triggered 2 | . . . . . 1 1 . . Indirectly . | . . . . . . . . . Trap Hack Attempts . | . . . . . . . . . Triggered . | . . . . . . . . . Disarmed . | . . . . . . . . . Reprogrammed . | . . . . . . . . . Reused . | . . . . . . . . . Traps Extracted . | . . . . . . . . . Installed . | . . . . . . . . . Triggered . | . . . . . . . . . Machines | -11 -10 -10 -10 -9 -8 -7 -7 -7 ---------- Run | Yrd Mat Min Exi Min Mat Fac Was Fac Machines Disabled 11 | . . . . . 8 . . 3 Max in Single Turn 2 | . . . . . 2 . . 2 Machines Repaired . | . . . . . . . . . Machines Dismantled . | . . . . . . . . . Machines Sabotaged . | . . . . . . . . . Overloaded Fab Kills . | . . . . . . . . . Hacking | -11 -10 -10 -10 -9 -8 -7 -7 -7 --------- Run | Yrd Mat Min Exi Min Mat Fac Was Fac Machines Accessed 6 | . 1 . . . 3 . . 2 Terminals 2 | . 1 . . . 1 . . . Fabricators . | . . . . . . . . . Repair Stations 3 | . . . . . 1 . . 2 Recycling Units . | . . . . . . . . . Scanalyzers 1 | . . . . . 1 . . . Garrison Access . | . . . . . . . . . Total Hacks 11 | . 1 . . . 7 . . 3 Successful 8 | . . . . . 7 . . 1 Failed 3 | . 1 . . . . . . 2 Catastrophic 1 | . . . . . . . . 1 Database Lockouts . | . . . . . . . . . Manual 1 | . . . 1 . . . . . Terminals 2 | . 1 . . . 1 . . . Fabricators . | . . . . . . . . . Repair Stations 5 | . . . . . 2 . . 3 Recycling Units . | . . . . . . . . . Scanalyzers 4 | . . . . . 4 . . . Garrison Access . | . . . . . . . . . Terminal Hacks 1 | . . . . . 1 . . . Alert Level 1 | . . . . . 1 . . . Fabricator Hacks . | . . . . . . . . . Repair Station Hacks 3 | . . . . . 2 . . 1 Scan Component 2 | . . . . . 1 . . 1 Repair 1 | . . . . . 1 . . . Recycling Unit Hacks . | . . . . . . . . . Scanalyzer 4 | . . . . . 4 . . . Insert Component 2 | . . . . . 2 . . . Analyze 2 | . . . . . 2 . . . Garrison Access Hacks . | . . . . . . . . . Unauthorized Hacks . | . . . . . . . . . Terminals . | . . . . . . . . . Fabricators . | . . . . . . . . . Repair Stations . | . . . . . . . . . Recycling Units . | . . . . . . . . . Scanalyzers . | . . . . . . . . . Garrison Access . | . . . . . . . . . Data Cores Recovered . | . . . . . . . . . Used . | . . . . . . . . . Hacking Detections 5 | . 1 . . . 2 . . 2 Full Trace Events . | . . . . . . . . . Feedback Events . | . . . . . . . . . Feedback Blocked . | . . . . . . . . . Robot Schematics Acquired . | . . . . . . . . . Robots Built . | . . . . . . . . . Authchips . | . . . . . . . . . Time . | . . . . . . . . . Total Robot Build Rating . | . . . . . . . . . Part Schematics Acquired 2 | . . . . . 2 . . . Parts Built . | . . . . . . . . . Authchips . | . . . . . . . . . Time . | . . . . . . . . . Total Part Build Rating . | . . . . . . . . . Parts Repaired 1 | . . . . . 1 . . . Time 26 | . . . . . 26 . . . Parts Recycled . | . . . . . . . . . Recycled Matter . | . . . . . . . . . Retrieved Matter . | . . . . . . . . . Retrieved Components . | . . . . . . . . . Parts Scanalyzed 2 | . . . . . 2 . . . Part Schematics Acquired 2 | . . . . . 2 . . . Parts Damaged 1 | . . . . . 1 . . . Bothacking | -11 -10 -10 -10 -9 -8 -7 -7 -7 ------------ Run | Yrd Mat Min Exi Min Mat Fac Was Fac Used RIF Installer . | . . . . . . . . . Robots Hacked . | . . . . . . . . . Non-combat . | . . . . . . . . . Combat . | . . . . . . . . . Robot Hacks Applied . | . . . . . . . . . Relay Couplers Released . | . . . . . . . . . Fabnet Peak Effective % . | . . . . . . . . . Robots Rewired . | . . . . . . . . . Allies Hacked . | . . . . . . . . . Hacks Repelled . | . . . . . . . . . Allies | -11 -10 -10 -10 -9 -8 -7 -7 -7 -------- Run | Yrd Mat Min Exi Min Mat Fac Was Fac Total Allies 3 | . . 3 . . . . . . Largest Group 3 | . . 3 3 1 1 . . . Highest-Rated Group 40 | . . 40 40 16 16 . . . Highest-Rated Ally 16 | . . 16 16 16 16 . . . Total Orders 3 | . . 2 1 . . . . . ROAM 1 | . . . 1 . . . . . GUARD 1 | . . 1 . . . . . . AID 1 | . . 1 . . . . . . Ally Attacks 18 | . . 9 2 5 2 . . . Total Damage 186 | . . 101 17 68 . . . . Kills 2 | . . . . 2 . . . . Allies Corrupted . | . . . . . . . . . Allies Melted . | . . . . . . . . . Intel | -11 -10 -10 -10 -9 -8 -7 -7 -7 ------- Run | Yrd Mat Min Exi Min Mat Fac Was Fac Robot Analysis Total . | . . . . . . . . . Derelict Logs Recovered 2 | . . 2 . . . . . . Drone Launches . | . . . . . . . . . Drone Recoveries . | . . . . . . . . . Exploration | -11 -10 -10 -10 -9 -8 -7 -7 -7 ------------- Run | Yrd Mat Min Exi Min Mat Fac Was Fac Turns Passed 7821 | 78 1098 1371 922 36 2865 180 317 954 Spaces Moved 3408 | 46 421 419 288 12 1092 73 234 823 Core 175 | 4 . . . . . . 158 13 Treads 2423 | 42 421 419 288 12 1092 73 76 . Legs . | . . . . . . . . . Wheels . | . . . . . . . . . Hover . | . . . . . . . . . Flight 810 | . . . . . . . . 810 Fastest Speed 29 | 50 160 320 320 320 240 247 50 29 Average Speed 214 | 150 234 320 320 320 248 247 129 90 Slowest Speed 355 | 160 320 320 320 320 326 247 247 355 Overloaded Moves . | . . . . . . . . . Propulsion Burnouts . | . . . . . . . . . Robots Hopped 2 | . . . . . . . . 2 Cave-ins Triggered . | . . . . . . . . . Exploration Rate (%) 41 | 3 61 78 61 6 66 3 77 18 Regions Visited 8 Branch Regions 3 Pre-discovered Areas 1 | . . 1 . . . . . . Known Exits Taken 5 | . 1 1 1 1 1 . . . Unknown Exits Taken 1 | 1 . . . . . . . . Scrap Searched 1 | . . 1 . . . . . . Spaces Dug . | . . . . . . . . . Terrain Destroyed 290 | . . . . . 141 1 4 144 Melee . | . . . . . . . . . Projectile 38 | . . . . . 18 1 4 15 AOE 252 | . . . . . 123 . . 129 Terrain Rammed . | . . . . . . . . . Walls Destroyed . | . . . . . . . . . Machines Disabled . | . . . . . . . . . Actions | -11 -10 -10 -10 -9 -8 -7 -7 -7 --------- Run | Yrd Mat Min Exi Min Mat Fac Was Fac Total 3710 | 52 465 431 290 11 1196 75 241 949 Wait 30 | . . . . . 2 . . 28 Move 3397 | 45 420 418 287 11 1091 73 233 819 Hop 2 | . . . . . . . . 2 Pick Up 40 | 1 3 2 3 . 22 . . 9 Fast Attach 26 | 6 2 . . . 4 . 1 13 Attach 25 | . 1 1 . . 6 2 . 15 Detach 5 | . 1 . . . 1 . . 3 Swap 9 | . 3 . . . 6 . . . Drop 16 | . 2 . . . 12 . . 2 Fire 137 | . 33 9 . . 50 . 6 39 Melee . | . . . . . . . . . Ram 20 | . . . . . . . 1 19 Kick . | . . . . . . . . . Crush 3 | . . 1 . . 2 . . . Escape Stasis . | . . . . . . . . . Rewire . | . . . . . . . . . Trap . | . . . . . . . . . Miscellaneous . | . . . . . . . . . Route ------- -11/Scrapyard -10/Materials (discovered 3 exits: *Mat x2 / *Min) -10/Mines (discovered 2 exits: *Exi / [*Sub]) -10/Exiles -9/Mines -8/Materials (discovered 2 exits: *Fac x2) -7/Factory -7/Waste -7/Factory History --------- Turn | Location | Event 13 | -11/Scrapyard | Discovered new exit (range 16) 79 | -11/Scrapyard | Entered Materials 287 | -10/Materials | Discovered new exit (range 10) 303 | -10/Materials | Identified exit to Materials 309 | -10/Materials | Discovered new exit (range 16) 317 | -10/Materials | Build established: Mutant 368 | -10/Materials | Identified exit to Mines 695 | -10/Materials | Discovered exit to Materials (range 5) 1177 | -10/Materials | Entered Mines 1184 | -10/Mines | Received a Rocket Launcher from a helpful Derelict 1270 | -10/Mines | Met a Derelict bent on vengeance 1284 | -10/Mines | Assisted by bots powering up and referring to "LRC-V3" 1864 | -10/Mines | Learned location of Storage (-9) 1972 | -10/Mines | Learned Materials emergency access door positions 1982 | -10/Mines | Discovered new exit (range 15) 2052 | -10/Mines | Learned Materials stockpile data 2526 | -10/Mines | Deemed a non-threat by the Exiles lab entrance 2529 | -10/Mines | Discovered new exit (range 5) 2542 | -10/Mines | Identified exit to Exiles 2548 | -10/Mines | Entered Exiles 2548 | -10/Exiles | Accompanied by 3 allies 2660 | -10/Exiles | Met 8R-AWN 2728 | -10/Exiles | Met EX-HEX 2875 | -10/Exiles | Met EX-BIN 2945 | -10/Exiles | Aligned with FarCom system 2948 | -10/Exiles | Given EX-Vault access code 3044 | -10/Exiles | Opened EX-Vault 3060 | -10/Exiles | Found Prototype Ballistic Cannon 3090 | -10/Exiles | Found Deploy-a-Sentry 3094 | -10/Exiles | Found Deploy-a-Sentry 3159 | -10/Exiles | Warned to stay clear of 0b10 Research branches 3176 | -10/Exiles | Exiles lab attacked by MAIN.C 3419 | -10/Exiles | Discovered new exit (range 12) 3467 | -10/Exiles | Identified exit to Mines 3470 | -10/Exiles | Stole two prototypes: Deploy-a-Sentry, AWS/Autocannon 3470 | -10/Exiles | Entered Mines 3470 | -9/Mines | Accompanied by 2 allies 3477 | -9/Mines | Discovered new exit (range 7) 3502 | -9/Mines | Identified exit to Materials 3506 | -9/Mines | Entered Materials 3506 | -8/Materials | Accompanied by 1 ally 3506 | -8/Materials | Evolved 4 slots: Propulsion x2, Weapon x2 3507 | -8/Materials | Identified AWS/Autocannon 3807 | -8/Materials | Build established: Skirmisher 5057 | -8/Materials | Discovered new exit (range 6) 5069 | -8/Materials | Identified exit to Factory 5506 | -8/Materials | Discovered exit to Factory (range 7) 5549 | -8/Materials | Repaired Lgt. Treads 6371 | -8/Materials | Entered Factory 6371 | -7/Factory | Evolved 2 slots: Utility x2 6373 | -7/Factory | FarCom data flow suspended 6551 | -7/Factory | Sucked down chute 6551 | -7/Factory | Entered Waste 6566 | -7/Waste | EMP discharged 6574 | -7/Waste | Spotted C-40 Crusher 6588 | -7/Waste | Destroyed C-40 Crusher 6630 | -7/Waste | Spotted C-40 Crusher 6640 | -7/Waste | Destroyed C-40 Crusher 6666 | -7/Waste | EMP discharged 6666 | -7/Waste | System corruption reached 10% 6676 | -7/Waste | Spotted C-40 Crusher 6682 | -7/Waste | Build established: Tank 6684 | -7/Waste | Destroyed C-40 Crusher 6694 | -7/Waste | Spotted C-40 Crusher 6696 | -7/Waste | Spotted C-40 Crusher 6700 | -7/Waste | Spotted C-40 Crusher 6716 | -7/Waste | Crushed by Compactor (1 part destroyed, 1 dropped) 6719 | -7/Waste | Crushed by Compactor (1 part destroyed, 2 dropped) 6740 | -7/Waste | Crushed by Compactor (1 part destroyed, 1 dropped) 6741 | -7/Waste | Crushed by Compactor (1 part destroyed, 2 dropped) 6766 | -7/Waste | EMP discharged 6772 | -7/Waste | Lost 4 parts (1p1n1u1w) 6844 | -7/Waste | Discovered new exit (range 14) 6866 | -7/Waste | EMP discharged 6866 | -7/Waste | System corruption reached 30% 6868 | -7/Waste | Entered Factory 7171 | -7/Factory | Lost 3 parts (1n1u1w) 7221 | -7/Factory | Found Prototype Launcher 7221 | -7/Factory | Identified Rocket Array 7512 | -7/Factory | Build established: Gunner 7734 | -7/Factory | Core integrity fell below 50% 7776 | -7/Factory | Lost 5 parts (1n1u3w) 7822 | -7/Factory | Self-destructed Last Messages --------------- 07786_ Complication: System interference. 07786_ Armor Integrity Analyzer temporarily disabled. 07789_ System corrupted: Component data lost. 07789_ Acquired Corrupted VTOL Module. 07789_ Integrated Corrupted VTOL Module (+3). 07790_ Acquired Corrupted Autogun. 07790_ Integrated Corrupted Autogun (+5). 07790_ Corrupted Autogun temporarily disabled. [Achievement: Z1$+NX3F=JRE3_ZNQR] 07794_ Acquired 28 matter. 07795_ Acquired VTOL Module. 07796_ U-05 Engineer builds a Wall. 07804_ |GMBBFMFQ00 6Q7SCHLI2/JIK&#<7,< 07804_ T-07 Excavator is excavating. 07810_ VTOL Module destroyed. 07811_ S-27 Virus destroyed. 07817_ Lgt. Nuclear Core destroyed. 07819_ System corrupted: Substantial component data lost. Map ----- +----------------------------------------------------+ | ???????????????????# # # #?????????????????? | | ???????????######### # # [ #?????????????????? | | ############ # # #?????????????????? | | ## #% # #?????????????????? | | #" # #?????????????????? | | " # # #????????????????? | | #" ]# ##????????????????? | | ## [ # # #?????????????????? | | ## # ###?????????????????? | | ## = # # # ???????????????? | | ######+##### ##+# #?? ??????????????? | | #???# ####????"?????????????? | | #???# +??????????????????? | | * #???# ^ #??????????????????? | | [ #???? k #??????????????????? | | ######## #???? ^ ###????????????????? | | # # #???? #????????????????? | | + # #???? #????????????????? | | # # #???? #????????????????? | | ####### #?? # #???? #????????????????? | | ??????# #???? # ???? #????????????????? | | ??????# #??????# #????+## #?????????????????? | | ??????# #??????# #??????# #?????????????????? | | ] ????# #??????# #??????# #?????????????????? | | ??# #??????# #??????# #?????????????????? | | # ######## #??????#@ #?????????????????? | | + #??????# #?????????????????? | | # #??????# #?????????????????? | | ??# ######## +?????????????????? | | ##????# ==% #?????????????????? | | ??????# #?????????????????? | | ??????# """ """ T #?????????????????? | | ??????# """"" """ #?????????????????? | | ??????# """"" """ #?????????????????? | | ??????# #?????????????????? | | ????? a #?????????????????? | | ????### ####gg #?????????????????? | | ??????# #??? #?????????????????? | | ??????# #??? +?????????????????? | | ??????#+# #??? # ????????????????? | | ????????# #???? ###???????????????? | | ????????# ####+#### ##???? ?????????????????? | | ????????# #???????# ?????? ?????????????????? | | ????????# #???????# ??????????????????????????? | | ????????# #???????? ??????????????????????????? | | ????????? ?????????????????????????????????????? | | ?????????????????????????????????????????????????? | | ?????????????????????????????????????????????????? | | ?????????????????????????????????????????????????? | | ?????????????????????????????????????????????????? | +----------------------------------------------------+ Best States ------------- Heat Dissipation 34 Energy Generation 18 Energy Capacity 310 Matter Stores 300 Matter Capacity 300 Sight Range 20 Terrain Scan Density 10 Additional Mass Support 9 EM Shielding 2 Armor Coverage 225 Resistance: KI 20 Evasion (%) 64 Launcher Accuracy 20 Armor Integrity Analysis 30 Recoil Reduction 4 Defensive Hacking 10 Item Schematics ----------------- Rocket Launcher | -8/Materials | Scanalyzed Hvy. Assault Cannon | -8/Materials | Scanalyzed Robot Schematics ------------------ None Fabricated ------------ Nothing Alien Tech Used ----------------- None Achievements -------------- Tank Z1$+NX3F=JRE3_ZNQR Challenges ------------ None Game ------ Seed BackupDroneArray Manual? 0 Play Time 00:57:24 Cumulative 17.6 hours Start 2024.07.07 @ 01:23:16 End 2024.07.07 @ 02:18:18 Sessions 1 Manual Loads 0 Difficulty Rogue Special Mode None Game No. 23 Rogue 23 Adventurer 0 Explorer 0 Win Type - Total 0 Types 0/0/0/0/0/0/0/0/0 Lore% 14 Gallery% 21 Achievement% 18 Wizard Run 0 Options --------- Layout 1 ASCII 0 Keyboard 0 Movement Arrows Keybinds 0 Fullscreen 2 Font 24/Smallcaps Map View 50x35 Zoom Use 0% Tactical HUD 1 Map Filters NONE Filters NONE Steam 1 RUN: ab99a947-e2d2-4049-8112-2b6f2715b20f